Cogmind - Beta 16.1 @@@ ROGUE MODE // 2026.04.20 @ 18:04:25 Player: Rocket Result: Smashed by cave-in Performance ------------- Evolutions (0) 0 Regions Visited (2) 400 Robots Destroyed (20) 100 Value Destroyed (431) 431 Prototype IDs (0) 0 Alien Tech Used (0) 0 Bonus (0) 0 TOTAL SCORE: 931 Bonus ------- None Cogmind --------- Core Integrity 0/250 Matter 241/300 Energy 100/100 System Corruption 4% Temperature Warm (135) Movement Core (400) Ox7 Location -10/Mines Parts ------- > --- POWER (1) -------- (None) > --- PROPULSION (2) --- (None) > --- UTILITY (2) ------ Heat Sink Large Storage Unit > --- WEAPON (2) ------- Spread Laser > --- INVENTORY (15) --- Ion Engine Light Treads Light Treads Aluminum Leg Small Storage Unit Tractor Beam Spread Laser Spread Laser Assault Rifle Assault Rifle Light Assault Rifle Grenade Launcher Grenade Launcher Grenade Launcher Hammer Peak State ------------ > --- POWER ------------ Ion Engine > --- PROPULSION ------- Aluminum Leg Aluminum Leg > --- UTILITY ---------- Heat Sink Large Storage Unit > --- WEAPON ----------- Spread Laser Spread Laser > --- INVENTORY -------- Ion Engine Light Treads Light Treads Wheel Small Storage Unit Signal Interpreter Spread Laser Spread Laser Assault Rifle Assault Rifle Light Assault Rifle Grenade Launcher Grenade Launcher Grenade Launcher Hammer [Rating: 10] Favorites ----------- Power Ion Engine Engine Ion Engine Propulsion Aluminum Leg Leg Aluminum Leg Wheel Wheel Utility Large Storage Unit Device Heat Sink Storage Large Storage Unit Processor Signal Interpreter Weapon Spread Laser Energy Gun Spread Laser Ballistic Gun Assault Rifle Launcher Grenade Launcher Build | -11 -10 -10 ------- Run | Yrd Mat Min Slots Evolved . | . . . Power . | . . . Propulsion . | . . . Utility . | . . . Weapon . | . . . Parts Attached 22 | 7 15 . Power 3 | 1 2 . Engine 3 | 1 2 . Core . | . . . Reactor . | . . . Propulsion 5 | 2 3 . Treads . | . . . Leg 4 | 2 2 . Wheel 1 | . 1 . Hover . | . . . Flight . | . . . Utility 5 | 2 3 . Device 2 | 1 1 . Storage 2 | 1 1 . Processor 1 | . 1 . Hackware . | . . . Protection . | . . . Artifact . | . . . Weapon 9 | 2 7 . Energy Gun 3 | . 3 . Energy Cannon . | . . . Ballistic Gun 5 | 2 3 . Ballistic Cannon . | . . . Launcher 1 | . 1 . Special Weapon . | . . . Impact Weapon . | . . . Slashing Weapon . | . . . Piercing Weapon . | . . . Special Melee Weapon . | . . . Unidentified Prototypes . | . . . Parts Lost 7 | . 3 4 Power 2 | . 1 1 Propulsion 3 | . 1 2 Utility 1 | . 1 . Weapon 1 | . . 1 Highest Loss Streak 4 | . 2 4 To Critical Strikes . | . . . Average Backups 11 | 1 12 15 Power . | . . 1 Propulsion 2 | 1 2 3 Utility 1 | . 1 2 Weapon 6 | . 7 9 Tool/Special . | . . . Unused Backups 8 | . 1 7 Power . | . . . Propulsion 2 | . . 2 Utility 2 | . 1 1 Weapon 4 | . . 4 Tool/Special . | . . . Average Slot Usage (%) 98 | . 98 98 Engine 13 | . 13 14 Leg 26 | . 26 27 Wheel 1 | . 1 . Device 13 | . 13 14 Storage 14 | . 14 14 Energy Gun 16 | . 15 27 Ballistic Gun 10 | . 12 . Peak Build Rating 10 | 7 10 10 Average Rating 8 | 5 8 9 On Entrance 5 | . 7 10 Avg Prop Armor Cover (%) 9 | . 9 . Naked Turns . | . . . Heaviest Build 32 | 15 32 32 Greatest Support 20 | 20 20 20 Greatest Overweight (x) 3 | 1 3 2 Average Overweight (x) 1 | . 1 1 Largest Inventory Capacity 15 | 8 15 15 Average Capacity 14 | 7 14 15 Most Carried 15 | 3 15 15 Average Carried 12 | 2 12 15 Final Capacity 15 | 8 15 15 Final Carried 15 | 3 15 15 Class Distribution -------------------- 100% | Mutant Dominant Class ---------------- Mutant | -10/Materials Mutant | -10/Mines Resources | -11 -10 -10 ----------- Run | Yrd Mat Min Matter Collected 536 | 209 295 32 Remotely . | . . . Salvage Created 368 | 44 320 4 Parts 33 | 5 28 . Haulers Intercepted . | . . . Recyclers Shooed . | . . . Parts Field Recycled . | . . . Retrieved Matter . | . . . Parts Self-Destructed . | . . . Prevented . | . . . Parts Restored . | . . . Kills | -11 -10 -10 ------- Run | Yrd Mat Min Combat Hostiles Destroyed 17 | . 16 1 Guns 15 | . 14 1 AOE 2 | . 2 . Classes Destroyed 5 | 1 3 1 Tunneler 2 | 2 . . Watcher 1 | . 1 . Swarmer 9 | . 9 . Grunt 7 | . 7 . Demolisher 1 | . . 1 Best Kill Streak 3 | 2 3 1 Combat Bots Only 3 | . 3 1 Max Kills in Single Turn 2 | 1 2 1 Gunslinging 1 | . 1 . Exploded 2 | . 2 . Melee . | . . . Uniques/NPCs Destroyed . | . . . Combat | -11 -10 -10 -------- Run | Yrd Mat Min Hostile Shots Fired 92 | . 83 9 Missed 18 | . 18 . Hits 74 | . 65 9 Projectile 74 | . 65 9 AOE 9 | . . 9 Damage Taken 1065 | . 604 461 Core 271 | . 106 165 Absorbed by Shields . | . . . Core Remaining (%) 100 | 100 . . Volleys Fired 52 | 4 42 6 Largest 2 | 2 2 2 Hottest 130 | 40 130 130 Shots Fired 99 | 8 81 10 Gun 98 | 8 80 10 Cannon . | . . . Launcher 1 | . 1 . Special . | . . . Kinetic 60 | 8 52 . Thermal 38 | . 28 10 Explosive 1 | . 1 . Electromagnetic . | . . . Robot Hit Streak 9 | 5 9 3 Robot Miss Streak 11 | 1 11 3 Penetration Max . | . . . Secondary Targets 2 | . 2 . Max Gunslinging Chain 1 | . 1 . Shots Hit Robots 64 | 6 48 10 Core Hits 53 | 2 39 12 Critical Kills . | . . . Critical Parts Destroyed . | . . . Critical Strikes . | . . . Melee Attacks . | . . . Impact . | . . . Slashing . | . . . Piercing . | . . . Sneak Attacks . | . . . Combat Hostiles . | . . . Follow-up Attacks . | . . . Damage Inflicted 980 | 72 782 126 Guns 853 | 72 655 126 Cannons . | . . . Explosions 127 | . 127 . Melee . | . . . Ramming . | . . . Kinetic 397 | 72 325 . Thermal 456 | . 330 126 Explosive 127 | . 127 . Electromagnetic . | . . . Impact . | . . . Slashing . | . . . Piercing . | . . . Highest Corruption . | . . . Average Corruption . | . . . Corruption Purged . | . . . Corruption Blocked . | . . . Overload Shots . | . . . Overflow Damage . | . . . Projectiles . | . . . Explosions . | . . . Melee . | . . . Knockbacks . | . . . Impact . | . . . Kinetic . | . . . Secondary . | . . . Self-Inflicted Damage 32 | . 32 . Shots 1 | . 1 . Rammed . | . . . Targets Rammed . | . . . Kicked . | . . . Crushed . | . . . Highest Temperature 180 | . 180 164 Average Temperature 65 | . 53 105 Received Heat Transfer 120 | . 120 . Siege Activations . | . . . Martial Activations . | . . . Shielding Activations . | . . . Robots Disrupted . | . . . Combat Hostiles . | . . . Robots Corrupted . | . . . Combat Hostiles . | . . . Parts Fried . | . . . Impact Corruptions . | . . . Robots Melted . | . . . Combat Hostiles . | . . . Parts Melted . | . . . Heat Transferred 550 | . 390 160 Parts Sabotaged . | . . . Parts Stolen . | . . . Parts Stripped . | . . . Power Chain Reactions . | . . . Alert | -11 -10 -10 ------- Run | Yrd Mat Min Maximum Alert Level . | . . . Low Security (%) 100 | 100 100 100 Level 1 . | . . . Level 2 . | . . . Level 3 . | . . . Level 4 . | . . . Level 5 . | . . . High Security . | . . . Max Security . | . . . Peak Influence 112 | 10 112 36 Initial 36 | . . 36 Average 27 | 1 32 9 Influence Increases 499 | 10 459 30 Destroy 0b10 Robot/C 340 | . 320 20 Destroy 0b10 Robot/NC 15 | 10 5 . Destroy Leader 82 | . 72 10 Successful Hack 25 | . 25 . Disable Machine 30 | . 30 . Destroy Structure 7 | . 7 . Influence Decreases 489 | 10 365 114 Entered New Map 58 | . . 58 Time Decay 381 | 10 335 36 Lost Part 50 | . 30 20 Squads Dispatched 4 | . 4 . Investigation 2 | . 2 . Extermination . | . . . Reinforcement 2 | . 2 . Assault . | . . . Garrison . | . . . Intercept . | . . . Searches Triggered . | . . . Construction Impeded . | . . . Haulers Reinforced . | . . . Active Scanning Responses . | . . . Cargo Convoy Interrupts . | . . . Stealth | -11 -10 -10 --------- Run | Yrd Mat Min Distress Signals 2 | . 2 . Communications Jammed . | . . . Distress Signals . | . . . Times Spotted 27 | . 25 2 Peak Tracking Total 6 | . 6 2 Tactical Retreats . | . . . Traps | -11 -10 -10 ------- Run | Yrd Mat Min Traps Triggered 2 | . 2 . Indirectly . | . . . Trap Hack Attempts . | . . . Triggered . | . . . Disarmed . | . . . Reprogrammed . | . . . Reused . | . . . Traps Extracted . | . . . Installed . | . . . Triggered . | . . . Machines | -11 -10 -10 ---------- Run | Yrd Mat Min Machines Disabled 2 | . 2 . Max in Single Turn 1 | . 1 . Machines Repaired . | . . . Machines Dismantled . | . . . Machines Sabotaged . | . . . Overloaded Fab Kills . | . . . Hacking | -11 -10 -10 --------- Run | Yrd Mat Min Machines Accessed 4 | . 4 . Terminals 4 | . 4 . Fabricators . | . . . Repair Stations . | . . . Recycling Units . | . . . Scanalyzers . | . . . Garrison Access . | . . . Total Hacks 10 | . 10 . Successful 5 | . 5 . Failed 5 | . 5 . Catastrophic . | . . . Database Lockouts . | . . . Manual 10 | . 10 . Terminals 10 | . 10 . Fabricators . | . . . Repair Stations . | . . . Recycling Units . | . . . Scanalyzers . | . . . Garrison Access . | . . . Terminal Hacks 3 | . 3 . Robot Analysis 2 | . 2 . Branch Access Points 1 | . 1 . Fabricator Hacks . | . . . Repair Station Hacks . | . . . Recycling Unit Hacks . | . . . Scanalyzer . | . . . Garrison Access Hacks . | . . . Unauthorized Hacks 2 | . 2 . Terminals 2 | . 2 . Botnet 2 | . 2 . Fabricators . | . . . Repair Stations . | . . . Recycling Units . | . . . Scanalyzers . | . . . Garrison Access . | . . . Data Cores Recovered . | . . . Used . | . . . Hacking Detections 3 | . 3 . Full Trace Events . | . . . Feedback Events . | . . . Feedback Blocked . | . . . Robot Schematics Acquired . | . . . Robots Built . | . . . Authchips . | . . . Time . | . . . Total Robot Build Rating . | . . . Part Schematics Acquired . | . . . Parts Built . | . . . Authchips . | . . . Time . | . . . Total Part Build Rating . | . . . Part Studies Acquired . | . . . Parts Repaired . | . . . Time . | . . . Parts Recycled . | . . . Recycled Matter . | . . . Retrieved Matter . | . . . Retrieved Components . | . . . Parts Scanalyzed . | . . . Part Schematics Acquired . | . . . Parts Damaged . | . . . Bothacking | -11 -10 -10 ------------ Run | Yrd Mat Min Used RIF Installer . | . . . Robots Hacked . | . . . Non-combat . | . . . Combat . | . . . Robot Hacks Applied . | . . . Relay Couplers Released . | . . . Fabnet Peak Effective % . | . . . Robots Rewired . | . . . Allies Hacked . | . . . Hacks Repelled . | . . . Allies | -11 -10 -10 -------- Run | Yrd Mat Min Total Allies . | . . . Largest Group . | . . . Highest-Rated Group . | . . . Highest-Rated Ally . | . . . Total Orders . | . . . Ally Attacks . | . . . Total Damage . | . . . Kills . | . . . Allies Corrupted . | . . . Allies Melted . | . . . Intel | -11 -10 -10 ------- Run | Yrd Mat Min Active Infowar (turns) 446 | 14 432 . Seismic 446 | 14 432 . Robot Analysis Total 2 | . 2 . Derelict Logs Recovered . | . . . Drone Launches . | . . . Drone Recoveries . | . . . Exploration | -11 -10 -10 ------------- Run | Yrd Mat Min Turns Passed 1383 | 85 1123 175 Spaces Moved 670 | 53 541 76 Core 6 | 6 . . Treads . | . . . Legs 594 | 47 471 76 Wheels 70 | . 70 . Hover . | . . . Flight . | . . . Fastest Speed 50 | 50 120 190 Average Speed 171 | 113 174 190 Slowest Speed 260 | 120 190 260 Overloaded Moves . | . . . Propulsion Burnouts . | . . . Robots Hopped . | . . . Potential Cave-ins . | . . . Cave-ins Triggered 1 | . . 1 Exploration Rate (%) 38 | 3 92 20 Regions Visited 2 Branch Regions 1 Pre-discovered Areas . | . . . Known Exits Taken 1 | . 1 . Unknown Exits Taken 1 | 1 . . Scrap Searched 1 | . . 1 Spaces Dug . | . . . Terrain Destroyed 5 | . 5 . Melee . | . . . Projectile . | . . . AOE 5 | . 5 . Terrain Rammed . | . . . Walls Destroyed . | . . . Machines Disabled . | . . . Actions | -11 -10 -10 --------- Run | Yrd Mat Min Total 797 | 66 633 98 Wait 32 | . 16 16 Move 668 | 52 540 76 Hop . | . . . Pick Up 16 | 3 13 . Fast Attach 10 | 7 3 . Attach 2 | . 2 . Detach . | . . . Swap 12 | . 12 . Drop 5 | . 5 . Fire 52 | 4 42 6 Melee . | . . . Ram . | . . . Kick . | . . . Crush . | . . . Escape Stasis . | . . . Rewire . | . . . Trap . | . . . Miscellaneous . | . . . Route ------- -11/Scrapyard -10/Materials (discovered 4 exits: *Mat x3 / *Min) -10/Mines History --------- Turn | Location | Event 5 | -11/Scrapyard | Discovered new exit (range 15) 86 | -11/Scrapyard | Entered Materials 318 | -10/Materials | Build established: Mutant 533 | -10/Materials | Discovered new exit (range 16) 596 | -10/Materials | Identified exit to Materials 838 | -10/Materials | Discovered exit to Materials (range 3) 919 | -10/Materials | Discovered exit to Materials (range 11) 1098 | -10/Materials | Identified exit to Mines 1209 | -10/Materials | Entered Mines 1276 | -10/Mines | Assembled infested the area 1371 | -10/Mines | Core integrity fell below 50% 1379 | -10/Mines | Core integrity fell below 20% 1385 | -10/Mines | Crushed by falling debris 1385 | -10/Mines | Smashed by cave-in Last Messages --------------- 01355_ U-05 Engineer lays Concrete. 01358_ U-05 Engineer builds a Wall. 01370_ U-05 Engineer lays Concrete. 01372_ D-53 Grenadier destroyed. 01372_ U-05 Engineer lays Concrete. 01373_ U-05 Engineer builds a Wall. 01374_ U-05 Engineer lays Concrete. 01376_ Aluminum Leg destroyed. 01377_ U-05 Engineer lays Concrete. 01378_ Spread Laser destroyed. 01379_ U-05 Engineer lays Concrete. 01382_ The unstable cave ceiling collapses. 01382_ D-53 Grenadier destroyed. 01382_ U-05 Engineer lays Concrete. 01385_ The unstable cave ceiling collapses. 01385_ Crushed by falling debris. 01385_ Aluminum Leg destroyed. 01385_ System corrupted by crushing effect (+2). 01385_ Ion Engine destroyed. 01385_ System corrupted by crushing effect (+2). Map ----- +----------------------------------------------------+ | ?????????????????????????????????????????????????? | | ?????????????????????????????????????????????????? | | ?????????????????????????????????????????????????? | | ?????????????????????????????????????????????????? | | ?????????????????????????????????????????????????? | | ?????????????????????????????????????????????????? | | ?????????????????????????????????????????????????? | | ?????????????????????????????????????????????????? | | ?????????????????????????????????????????????????? | | ???????????????????????????? ???????????????????? | | ???????????????????????????# #??????????????????? | | ???????????????????????????# #??????????????????? | | ???????????????????????????# #??????????????????? | | ???????????????????????????#k ####???????????????? | | ???????????????????????????# ????????????????? | | ???????????????????????????# ?????????????????? | | ?????????????????????????### ?????????????????? | | ????????????????????????## ??????????????????? | | ????????????????#???????# #????????#????#????? | | ????????????##### #?????# #######? #?? ?????? | | ???????????? ?????# ## ## # ?????? | | ??????????? ??### ????????? | | ??????????? ## u t #???????????? | | ???????????% # % #????????????? | | ?????????????????# #????????????? | | ??????????? ## @ # #????????????? | | ?????????????????# ## #????????????? | | ?????????????????##### ## ##???????####?? | | ?????????????????????# # # #?????#### ##? | | ?????????????????????## ## #????## #? | | ??????????????????????## ### #???## ## | | ???????????????????????### ###?# ##??## # | | ?????????????????????????# #???# ##??## | | ?????????????????????????# #???# ##### ## | | ?????????????????????????# #???# #### | | ?????????????????????????# #???# ### #??# | | ?????????????????????????# #???# #?# #??## | | ?????????????????????????#!#???# #?## ##???# | | ?????????????????????????# ##### #??# ##????# | | ?????????????????????????#!## #??# ?????# | | ?????????????????????????# # #??# ##????## | | ?????????????????????????# # #??####??????### | | ?????????????????????????# # #??????????????? | | ?????????????????????????# ##??????????????? | | ?????????????????????????#### ##???????????????? | | ????????????????????????????#####????????????????? | | ?????????????????????????????????????????????????? | | ?????????????????????????????????????????????????? | | ?????????????????????????????????????????????????? | | | +----------------------------------------------------+ Best States ------------- Heat Dissipation 35 Energy Generation 10 Energy Capacity 250 Matter Stores 231 Matter Capacity 300 Sight Range 16 Terrain Scan Density 10 Evasion (%) 55 Item Schematics ----------------- None Robot Schematics ------------------ None Fabricated ------------ Nothing Repaired ---------- Nothing Studied --------- None Alien Tech Used ----------------- None Achievements -------------- None Challenges ------------ None Game ------ Seed ImprinterDecoyPrototype Manual? 0 Play Time 00:06:34 Cumulative 152.3 hours Start 2026.04.20 @ 17:58:30 End 2026.04.20 @ 18:04:25 Sessions 1 Manual Loads 0 Difficulty Rogue Special Mode None Game No. 205 Rogue 205 Adventurer 0 Explorer 0 Win Type - Total 2 Types 2/0/0/0/0/0/0/0/0/0 Lore% 40 Gallery% 51 Achievement% 40 Wizard Run 0 Options --------- Layout 1 ASCII 0 Keyboard 0 Movement Mouse Keybinds 0 Fullscreen 2 Font 24/Smallcaps Map View 50x35 Zoom Use 24% Tactical HUD 1 Map Filters NONE Filters NONE Steam 1 RUN: 0e84f16d-c70c-456e-adb5-4e3dafa718b3